bitfinex/quotes_ETHUSD_20240820
["timestamp","ask_amount","ask_price","bid_price","bid_amount"]
[1724184489797,3.76182867,2613.6,2613.5,7.00161]
[1724184490170,3.5,2613.6,2613.5,7.00161]
[1724184490515,3.76221446,2613.6,2613.5,5.38061]
[1724184491497,7.58835446,2613.6,2613.5,0.55]
[1724184491807,3.82628,2613.5,2613.4,19.47]
[1724184492008,0.26220285,2613.5,2613.4,19.47]
[1724184492675,4.08848285,2613.5,2613.4,19.47]
[1724184493373,0.26220285,2613.5,2613.4,19.47]
[1724184494014,0.26220285,2613.5,2613.4,20.02]
[1724184494884,4.08848285,2613.5,2613.4,20.02]
[1724184495210,0.26220285,2613.5,2613.4,20.02]
[1724184496197,7.91476285,2613.5,2613.4,19.47]
[1724184496412,10.38186285,2613.5,2613.4,19.47]
[1724184496588,3.82701,2613.0,2612.7,19.47]
[1724184496913,4.08936831,2612.9,2612.8,19.47]
[1724184498230,4.08936831,2612.9,2612.8,20.02]
[1724184498731,7.91661831,2612.9,2612.8,19.47]
[1724184499632,4.08935831,2612.9,2612.8,19.47]
[1724184499811,0.26210831,2612.9,2612.8,19.47]
[1724184500810,4.08926831,2612.9,2612.8,19.47]
[1724184501017,4.08926831,2612.9,2612.5,19.47]
[1724184501210,7.91653831,2612.9,2612.6,0.55]
[1724184502344,3.82733,2612.8,2612.6,0.55]
[1724184502714,0.26208508,2612.7,2612.6,0.55]
[1724184503111,3.82733,2612.8,2612.6,0.55]
[1724184503444,0.26205632,2612.7,2612.6,0.55]
[1724184503628,3.82733,2612.8,2612.6,0.55]
[1724184503826,0.26206042,2612.7,2612.6,0.55]
[1724184504024,3.82733,2612.8,2612.6,0.55]
[1724184504235,0.26206864,2612.7,2612.6,0.55]
[1724184504539,3.82745,2612.7,2612.6,0.55]
[1724184504747,4.08955833,2612.7,2612.6,0.55]
[1724184505044,3.82745,2612.7,2612.6,0.55]
[1724184505286,3.8276,2612.6,2612.5,19.47]
[1724184505780,4.08954968,2612.6,2612.5,19.47]
[1724184506501,7.91714968,2612.6,2612.5,19.47]
[1724184506637,14.01804968,2612.6,2612.5,19.47]
[1724184507054,17.01804968,2612.6,2612.5,19.47]
[1724184508088,13.19044968,2612.6,2612.5,19.47]
[1724184509339,7.08954968,2612.6,2612.5,19.47]
[1724184510467,4.08954968,2612.6,2612.5,19.47]
[1724184510663,0.26194968,2612.6,2612.5,19.47]
[1724184510833,0.26194968,2612.6,2612.5,21.417]
[1724184511037,4.08954968,2612.6,2612.5,19.47]
[1724184512091,0.26194968,2612.6,2612.5,19.47]
[1724184513011,0.26194968,2612.6,2612.5,19.46905811]
[1724184513794,0.26194968,2612.6,2612.5,21.89605811]
[1724184514194,3.82745,2612.7,2612.5,21.89605811]
[1724184514397,0.25265727,2612.6,2612.5,21.89605811]
[1724184515880,0.25265727,2612.6,2612.5,24.63566392]
[1724184516266,3.82702,2613.0,2612.5,24.63566392]
[1724184516461,4.22758681,2613.1,2612.6,0.55]
[1724184516665,4.07980326,2613.0,2612.6,0.55]
[1724184517210,0.25277326,2613.0,2612.6,0.55]
[1724184517397,0.25277326,2613.0,2612.7,2.46356639]
[1724184517738,0.25277326,2613.0,2612.8,0.55]
[1724184518500,0.25277326,2613.0,2612.9,2.3218]
[1724184518703,0.25277326,2613.0,2612.9,2.8718]
[1724184518930,0.40070681,2613.1,2612.9,2.8718]
[1724184519258,0.25284821,2613.0,2612.9,3.40533664]
[1724184519412,0.40070681,2613.1,2612.9,3.40533664]
[1724184519752,0.25289786,2613.0,2612.9,3.40533664]
[1724184519916,0.25289786,2613.0,2612.9,2.8718]
[1724184520115,3.82637,2613.5,2612.9,2.8718]
[1724184520342,3.82651,2613.4,2613.0,0.55]
[1724184520988,3.82629,2613.5,2613.0,0.55]
[1724184521323,3.82629,2613.5,2613.0,0.83718]
[1724184522623,7.65267,2613.5,2613.0,0.83718]
[1724184523073,0.25322259,2613.4,2613.0,0.83718]
[1724184524570,0.25322259,2613.4,2613.1,2.365]
[1724184524780,0.25322259,2613.4,2613.3,2.365]
[1724184524925,3.82615,2613.6,2613.3,21.83405811]
[1724184525129,0.25323303,2613.4,2613.3,21.83405811]
[1724184525324,4.22664342,2613.7,2613.3,4.60340581]
[1724184525557,0.40063342,2613.7,2613.4,0.55]
[1724184526530,0.42994199,2614.4,2613.4,0.55]
[1724184526531,3.82548,2614.1,2613.5,2.2577]
[1724184526869,3.82548,2614.1,2613.6,20.29982811]
[1724184527462,3.82548,2614.1,2613.6,20.31594373]
[1724184527808,0.1248584,2614.2,2613.7,21.94805811]
[1724184528015,3.9502184,2614.2,2613.8,0.55]
[1724184528199,0.1248584,2614.2,2613.9,2.365]
[1724184528404,0.1248584,2614.2,2614.1,2.365]
[1724184528573,0.1248584,2614.2,2614.1,14.4388]
[1724184528973,0.1248584,2614.2,2614.1,36.90785811]
[1724184529179,0.01,2615.7,2614.1,11.15831554]
[1724184529505,0.01,2615.7,2615.2,3.873]
[1724184529714,0.01,2615.7,2615.3,2.8936]
[1724184529889,0.01,2615.7,2615.3,6.71713]
[1724184530093,0.01,2615.7,2615.3,2.8936]
[1724184530309,0.01,2615.7,2615.6,9.99002]
[1724184530616,0.01,2615.7,2615.6,6.71681]
[1724184530784,0.01,2615.7,2615.6,22.43909142]
[1724184530986,0.01,2615.7,2615.6,35.66922325]
[1724184531311,0.00421884,2616.5,2615.8,3.82287]
[1724184531513,0.00421884,2616.5,2616.0,2.3711]
[1724184531820,0.00421884,2616.5,2616.1,0.55]
[1724184531987,0.00421884,2616.5,2616.1,3.55]
[1724184532190,0.00421884,2616.5,2616.2,0.59211]
[1724184532525,3.82223,2616.3,2615.6,2.66014514]
[1724184532728,0.00421884,2616.5,2615.6,2.66014514]
[1724184532729,3.82204,2616.4,2615.6,2.66014514]
[1724184532874,4.07366115,2616.2,2615.6,2.66014514]
[1724184533076,0.25120115,2616.2,2615.6,2.66014514]
[1724184533295,3.82263,2616.0,2615.5,2.2758]
[1724184533672,0.25127321,2615.9,2615.5,2.2758]
[1724184533878,0.25127321,2615.9,2615.6,0.55]
[1724184534115,3.8222,2616.3,2615.6,0.55]
[1724184534431,0.25123018,2615.8,2615.6,0.55]
[1724184534633,3.82234,2616.2,2615.6,0.861516]
[1724184535082,4.07358382,2616.1,2615.6,0.861516]
[1724184535289,4.07358382,2616.1,2615.6,0.55]
[1724184535686,3.82265,2616.0,2615.7,19.46905811]
[1724184535919,0.25112098,2615.9,2615.7,19.46905811]
[1724184536960,3.82283,2615.9,2615.7,19.46905811]
[1724184537089,3.82292,2615.8,2615.7,19.46905811]
[1724184537290,4.07400089,2615.8,2615.7,19.46905811]
[1724184537948,7.89692089,2615.8,2615.7,19.46905811]
[1724184538314,3.8235,2615.4,2615.2,19.46905811]
[1724184538516,3.82365,2615.3,2615.2,19.46905811]
[1724184538721,3.82394,2615.1,2615.0,19.46905811]
[1724184539110,3.82394,2615.1,2614.5,14.6961]
[1724184539111,3.8244,2614.8,2614.5,2.4261]
[1724184539357,3.82436,2614.9,2613.8,2.4261]
[1724184539655,7.69663302,2614.9,2613.9,0.625196]
[1724184539859,4.07594273,2614.8,2613.9,0.625196]
[1724184540318,3.82462,2614.7,2613.9,0.625196]
[1724184540652,3.87267302,2614.6,2613.9,0.625196]
[1724184540820,3.82462,2614.7,2613.8,2.4261]
[1724184540821,7.64928,2614.7,2613.8,2.4261]
[1724184541022,0.29925073,2614.6,2613.8,2.4261]
[1724184541461,3.82483,2614.5,2613.8,2.4261]
[1724184541860,3.82512,2614.3,2613.8,2.4261]
[1724184542005,0.29914423,2614.4,2613.6,0.01611562]
[1724184542006,3.82554,2614.1,2613.6,0.01611562]
[1724184542207,0.25125009,2614.0,2613.6,0.01611562]
[1724184542643,0.25125009,2614.0,2613.6,0.01610955]
[1724184542644,4.07689009,2614.0,2613.6,0.01610955]
[1724184543111,0.25125009,2614.0,2613.6,0.01610955]
[1724184543888,0.25061395,2613.9,2613.7,2.2775]
[1724184544096,3.8254,2614.1,2613.7,2.29360955]
[1724184544298,4.07642073,2613.8,2613.7,0.01610954]
[1724184544448,3.82584,2613.8,2613.7,0.01610954]
[1724184544643,4.07640397,2613.8,2613.7,0.01610954]
[1724184544892,0.25056397,2613.8,2613.7,0.01610954]
[1724184545047,7.65096,2614.1,2613.7,0.01610954]
[1724184545396,4.07612231,2614.0,2613.7,0.01610954]
[1724184545710,0.25056231,2614.0,2613.7,0.01610954]
[1724184545989,0.25056231,2614.0,2613.8,2.3365]
[1724184546189,3.5,2614.5,2613.8,21.82166765]
[1724184546395,0.25053068,2613.9,2613.8,21.82166761]
[1724184546549,3.5,2614.5,2613.8,22.37166757]
[1724184546749,7.32483,2614.5,2613.9,0.55]
[1724184546950,0.25056517,2614.4,2614.0,2.29216675]
[1724184547150,0.25056517,2614.4,2614.1,0.55]
[1724184547393,4.07554517,2614.4,2614.1,0.56610941]
[1724184547594,3.82523,2614.3,2614.1,0.56610941]
[1724184547763,11.52368302,2614.2,2614.1,0.01610941]
[1724184547978,15.59959506,2614.2,2614.1,0.0161094]
[1724184548313,20.90739506,2614.2,2614.1,0.0161094]
[1724184548495,20.90739506,2614.2,2612.2,3.82811]
[1724184548496,3.82731,2612.8,2612.6,2.3659]
[1724184548715,3.82734,2612.8,2612.0,2.3659]
[1724184548916,3.82734,2612.8,2612.1,0.97759]
[1724184549068,3.82757,2612.7,2612.0,2.3659]
[1724184549922,3.82796,2612.4,2612.0,2.3659]
[1724184550081,0.04790302,2612.6,2612.0,2.3659]
[1724184550082,3.82768,2612.6,2612.0,2.3659]
[1724184550414,0.24994095,2612.5,2612.1,0.31315139]
[1724184550653,3.82719,2612.9,2612.1,0.23659]
[1724184550954,3.82762,2612.6,2612.1,0.23659]
[1724184551317,0.24961624,2612.5,2612.1,0.23659]
[1724184551659,6.82706,2613.0,2612.1,0.23659]
[1724184551660,3.82722,2612.9,2612.1,0.23659]
[1724184551824,0.24964625,2612.8,2612.1,0.23659]
[1724184552176,0.24964625,2612.8,2612.5,3.82772]
[1724184552452,3.8254,2614.2,2612.7,2.4613]
[1724184552453,3.82599,2613.7,2612.7,2.4613]
[1724184552622,0.24966712,2613.6,2612.8,0.62652465]
[1724184552805,3.82599,2613.7,2612.8,0.55]
[1724184553009,4.07597074,2613.6,2612.8,0.55]
[1724184553964,3.8263,2613.5,2612.8,0.55]
[1724184554450,0.24969906,2613.4,2612.8,0.55]
[1724184554603,3.0,2613.9,2612.8,0.55]
[1724184554802,0.24970234,2613.8,2612.9,0.30113]
[1724184555062,7.07556234,2613.8,2613.0,0.55]
[1724184555564,7.07556234,2613.8,2613.1,21.93035811]
[1724184555565,0.24970234,2613.8,2613.1,21.93035811]
[1724184555775,0.24970234,2613.8,2613.2,2.87455766]
[1724184556064,3.82556,2614.0,2613.3,0.07652052]
[1724184556269,0.24979686,2613.9,2613.4,20.01905811]
[1724184556453,0.24979686,2613.9,2613.5,19.46905811]
[1724184556628,3.8253,2614.2,2613.7,2.4217]
[1724184556823,0.24982828,2614.1,2613.8,0.55]
[1724184557239,4.07523828,2614.1,2613.8,0.55]
[1724184557649,4.07527828,2614.1,2613.8,0.55]
[1724184558318,3.82556,2614.0,2613.8,0.55]
[1724184558668,0.24976986,2613.9,2613.6,2.00190581]
[1724184558876,0.24976986,2613.9,2613.7,0.55]
[1724184560012,4.07558986,2613.9,2613.7,0.55]
[1724184560370,0.24976986,2613.9,2613.7,0.55]
[1724184560613,0.24976986,2613.9,2613.7,20.01905811]
[1724184560797,0.24976986,2613.9,2613.7,20.90280834]
[1724184560981,0.24976986,2613.9,2613.7,20.01905811]
[1724184561193,3.82584,2613.8,2613.7,19.46905811]
[1724184561389,0.24964751,2613.8,2613.7,19.46905811]
[1724184561817,4.07548751,2613.8,2613.7,19.46905811]
[1724184562313,0.24964751,2613.8,2613.7,19.46905811]
[1724184562710,7.90132751,2613.8,2613.7,19.46905811]
[1724184563248,10.90132751,2613.8,2613.7,19.46905811]
[1724184563461,3.82669,2613.3,2613.0,19.46905811]
[1724184563598,3.82669,2613.3,2613.1,19.46905811]
[1724184563801,0.25012959,2613.2,2613.1,19.46905811]
[1724184564119,7.65276,2613.5,2613.1,19.46905811]
[1724184564339,0.25011691,2613.2,2613.1,19.46905811]
[1724184564536,3.82644,2613.4,2613.1,19.46905811]
[1724184564854,0.25011691,2613.2,2613.1,19.46905811]
[1724184565005,7.6524,2613.6,2613.1,22.21207392]
[1724184565205,3.82614,2613.6,2613.1,22.21207392]
[1724184565457,4.07646718,2613.5,2613.1,22.21207392]
[1724184566259,0.25015718,2613.5,2613.1,19.46905811]
[1724184566455,0.25015718,2613.5,2612.8,19.46905811]
[1724184566607,3.82637,2613.5,2612.8,19.46905811]
[1724184566951,3.2495966,2613.4,2612.9,2.4611]
[1724184567103,3.2495966,2613.4,2613.0,2.19301581]
[1724184567546,0.2495966,2613.4,2613.0,2.19301581]
[1724184567752,0.2495966,2613.4,2613.1,0.55]
[1724184568105,3.82601,2613.7,2613.1,0.55]
[1724184568448,3.82601,2613.7,2613.2,0.27430158]
[1724184568449,4.07563919,2613.6,2613.2,0.27430158]
[1724184568632,4.07563919,2613.6,2613.3,0.55]
[1724184569051,0.24946919,2613.6,2613.3,0.55]
[1724184569260,3.82642,2613.5,2613.3,0.55]
[1724184569467,3.82642,2613.5,2613.3,20.01905811]
[1724184569668,2.6466,2614.1,2613.3,22.34595811]
[1724184569669,0.24958099,2613.4,2613.3,22.34595811]
[1724184570024,3.82585,2613.8,2613.3,22.34595811]
[1724184570223,0.24954469,2613.4,2613.3,22.34595811]
[1724184570522,0.24952191,2613.4,2613.3,22.34595811]
[1724184570723,3.82599,2613.7,2613.3,24.60798408]
[1724184570925,0.24956156,2613.6,2613.3,24.60798408]
[1724184571683,3.82573,2613.9,2613.4,19.46905811]
[1724184571829,3.82573,2613.9,2613.5,20.01905811]
[1724184572031,0.24954489,2613.8,2613.5,20.01905811]
[1724184572686,3.82608,2613.7,2613.5,20.01905811]
[1724184572827,0.24954489,2613.8,2613.5,22.47985652]
[1724184573028,0.24952403,2613.6,2613.5,22.47985652]
[1724184573347,0.24952403,2613.6,2613.5,21.92985652]
[1724184573348,3.82614,2613.6,2613.5,21.92985652]
[1724184573657,3.82614,2613.6,2613.5,19.46905811]
[1724184573855,0.24953777,2613.6,2613.5,19.46905811]
[1724184574474,0.24953777,2613.6,2613.5,20.01905811]
[1724184574669,7.65158,2613.9,2613.5,20.01905811]
[1724184574975,4.0753736,2613.8,2613.5,20.01905811]
[1724184575323,0.2495036,2613.8,2613.5,22.25365392]
[1724184575526,4.0754136,2613.8,2613.5,22.25365392]
[1724184576596,0.2495036,2613.8,2613.5,22.25365392]
[1724184576901,0.2495036,2613.8,2613.6,23.92161128]
[1724184577183,3.5,2614.5,2614.0,2.4692]
[1724184577350,3.5,2614.5,2614.1,0.55]
[1724184577676,0.24119146,2614.4,2614.1,0.55]
[1724184578037,3.5,2614.5,2614.1,0.55]
[1724184578465,7.32482,2614.5,2614.1,0.55]
[1724184578669,0.24127031,2614.4,2614.1,0.85192]
[1724184580428,0.24127031,2614.4,2614.2,2.3445]
[1724184580640,0.24127031,2614.4,2614.3,0.55]
[1724184582560,0.24127031,2614.4,2614.3,19.21955451]
[1724184582975,4.06623031,2614.4,2614.3,19.21955451]
[1724184583186,7.89119031,2614.4,2614.3,19.21955451]
[1724184584484,10.19209031,2614.4,2614.3,19.21955451]
[1724184584692,7.89119031,2614.4,2614.3,19.21955451]
[1724184585109,0.24127031,2614.4,2614.3,19.21955451]
[1724184585467,4.06623031,2614.4,2614.3,19.21955451]
[1724184588045,0.24127031,2614.4,2614.3,19.21955451]
[1724184588187,0.24127031,2614.4,2614.3,21.15532088]
[1724184589334,0.24127031,2614.4,2614.3,19.76955451]
[1724184591141,3.5,2614.5,2614.3,19.76955451]
[1724184591288,3.5,2614.5,2614.4,0.55]
[1724184593232,3.5,2614.5,2614.4,19.76955451]
[1724184597731,3.5,2614.5,2614.4,19.7778752]
[1724184598054,3.74162291,2614.5,2614.4,19.7778752]
[1724184598361,3.74162291,2614.5,2614.4,19.2278752]
[1724184598362,11.39126291,2614.5,2614.4,19.2278752]
[1724184598902,13.77776291,2614.5,2614.4,19.2278752]
[1724184599147,20.60258291,2614.5,2614.4,0.00832069]
[1724184599518,24.42740291,2614.5,2614.4,0.00832069]
[1724184600210,20.60258291,2614.5,2614.4,0.00832069]
[1724184601225,16.77776291,2614.5,2614.4,0.00832069]
[1724184603154,20.60258291,2614.5,2614.4,0.00832069]
[1724184604098,24.42740291,2614.5,2614.4,0.00832069]
[1724184604404,17.60258291,2614.5,2614.4,0.00832069]
[1724184604608,16.77776291,2614.5,2614.4,0.00832069]
[1724184604774,7.56644291,2614.5,2614.4,0.00832069]
[1724184605101,7.89126291,2614.5,2614.4,0.00832069]
[1724184608608,0.24162291,2614.5,2614.4,0.00832069]
[1724184608914,7.64921,2614.7,2614.4,0.00832069]
[1724184609066,0.24136553,2614.5,2614.4,0.00832069]
[1724184609265,3.82435,2614.9,2614.4,2.42982069]
[1724184609513,3.8244,2614.8,2614.5,0.45]
[1724184609720,3.82454,2614.7,2614.5,0.45]
[1724184610005,3.82454,2614.7,2614.4,0.00832069]
[1724184610006,7.64964,2614.5,2614.4,0.00832069]
[1724184611662,3.82482,2614.5,2614.4,0.00832069]
[1724184611900,3.82468,2614.6,2614.4,0.00832069]
[1724184612826,3.82453,2614.7,2614.4,0.00832069]
[1724184612967,0.24144789,2614.5,2614.4,0.5583205]
[1724184613164,0.24144789,2614.5,2614.4,0.0083205]
[1724184613413,3.82465,2614.7,2614.4,0.0083205]
[1724184613912,0.24142496,2614.6,2614.4,0.0083205]
[1724184614828,4.06611496,2614.6,2614.4,0.0083205]
[1724184615110,3.82482,2614.5,2614.4,0.0083205]
[1724184615424,4.06651456,2614.5,2614.4,0.0083205]
[1724184615567,7.89133456,2614.5,2614.4,0.0083205]
[1724184616521,11.71615456,2614.5,2614.4,0.0083205]
[1724184616668,14.21275456,2614.5,2614.4,0.0083205]
[1724184617069,17.21275456,2614.5,2614.4,0.0083205]
[1724184617777,10.89133456,2614.5,2614.4,0.0083205]
[1724184618109,7.89133456,2614.5,2614.4,0.0083205]
[1724184621101,11.71615456,2614.5,2614.4,0.0083205]
[1724184621510,18.54097456,2614.5,2614.4,0.0083205]
[1724184621675,20.97557456,2614.5,2614.4,0.0083205]
[1724184621879,17.15075456,2614.5,2614.4,0.0083205]
[1724184622817,17.15075456,2614.5,2612.7,2.3912]
[1724184622818,1.7339,2613.9,2612.7,2.3912]
[1724184623118,1.7339,2613.9,2612.4,1.59253558]
[1724184623119,3.82738,2612.8,2612.0,2.3912]
[1724184623631,3.82726,2612.9,2612.0,2.3912]
[1724184623632,0.24121451,2612.7,2612.0,2.3912]
[1724184623784,4.06866451,2612.7,2612.1,0.621979]
[1724184624123,0.24121451,2612.7,2612.0,2.3912]
[1724184624720,4.06869451,2612.7,2612.0,2.3912]
[1724184625069,0.24121451,2612.7,2612.0,2.3912]
[1724184625306,0.24121451,2612.7,2612.1,2.3912]
[1724184625469,0.24121451,2612.7,2612.1,2.9412]
[1724184625681,0.24121451,2612.7,2612.1,2.3912]
[1724184625903,4.06871451,2612.7,2612.2,0.621958]
[1724184626123,4.06871451,2612.7,2612.1,2.3912]
[1724184626291,0.24121451,2612.7,2612.1,2.3912]
[1724184627118,0.24121451,2612.7,2612.2,0.55]
[1724184629051,3.82712,2613.0,2612.4,2.4909]
[1724184629052,0.2403569,2612.6,2612.4,2.4909]
[1724184629332,0.2403569,2612.6,2612.5,0.55]
[1724184629529,3.82718,2612.9,2612.5,0.55]
[1724184629943,4.06771835,2612.8,2612.5,0.55]
[1724184630419,3.82754,2612.7,2612.5,0.55]
[1724184630627,0.04790302,2612.6,2612.3,19.21955451]
[1724184630784,3.82789,2612.4,2612.3,19.21955451]
[1724184630990,4.06820854,2612.4,2612.3,19.21955451]
[1724184631236,0.24031854,2612.4,2612.3,19.21955451]
[1724184631444,7.89609854,2612.4,2612.3,19.21955451]
[1724184632240,4.06867952,2612.1,2612.0,2.4909]
[1724184632891,4.06867952,2612.1,2611.6,2.4909]
[1724184632892,3.82858,2612.0,2611.6,2.4909]
[1724184633091,3.82858,2612.0,2611.6,2.83999]
[1724184633324,0.24031805,2611.9,2611.6,2.83999]
[1724184633760,4.06894805,2611.9,2611.6,2.4909]
[1724184634469,0.24031805,2611.9,2611.6,2.4909]
[1724184636264,0.24031805,2611.9,2611.7,0.55]
[1724184636571,7.65654,2612.2,2611.7,0.55]
[1724184636726,7.65655,2612.2,2611.7,0.55]
[1724184636931,4.06877232,2612.1,2611.7,0.55]
[1724184637169,0.24041232,2612.1,2611.7,0.95409]
[1724184637370,3.87609302,2612.2,2611.7,0.95409]
[1724184637582,3.82851,2612.0,2611.7,0.55]
[1724184637865,0.24034878,2611.9,2611.7,0.55]
[1724184638606,0.24033304,2611.8,2611.7,0.55]
[1724184638806,7.65649,2612.2,2611.7,0.55]
[1724184638954,0.24038024,2612.1,2611.7,0.95409]
[1724184640605,4.06874024,2612.1,2611.7,0.95409]
[1724184641177,0.24038024,2612.1,2611.7,0.95409]
[1724184641486,3.828,2612.4,2611.7,0.95409]
[1724184641693,3.82821,2612.2,2611.7,0.55]
[1724184642123,4.06881024,2612.1,2611.7,0.55]
[1724184643711,4.06881024,2612.1,2611.8,19.21955451]
[1724184644023,3.82876,2611.9,2611.6,2.4909]
[1724184644306,4.06873024,2612.1,2611.6,3.65756336]
[1724184644508,0.24013658,2611.8,2611.6,3.58099]
[1724184644718,3.82835,2612.1,2611.6,3.58099]
[1724184645003,3.8282,2612.2,2611.6,3.58099]
[1724184645216,4.06860378,2612.1,2611.7,0.458099]
[1724184645396,4.06860378,2612.1,2611.8,0.55]
[1724184646165,0.24018378,2612.1,2611.8,0.55]
[1724184646670,3.82729,2612.9,2611.9,2.4415]
[1724184646869,3.82739,2612.8,2612.1,2.4415]
[1724184647173,3.82743,2612.8,2612.2,0.55]
[1724184647503,7.65539,2612.6,2612.2,0.55]
[1724184647666,3.82767,2612.6,2612.2,0.55]
[1724184648828,3.82767,2612.6,2612.2,2.80102045]
[1724184648984,3.82747,2612.7,2612.3,19.21955451]
[1724184649572,3.82761,2612.6,2612.3,19.21955451]
[1724184650179,3.82747,2612.7,2612.3,19.21955451]
[1724184650485,3.82674,2613.2,2612.5,2.2611]
[1724184650808,3.82695,2613.1,2612.6,19.76955451]
[1724184651011,0.04790302,2613.0,2612.6,19.76955451]
[1724184651204,3.82733,2612.8,2612.6,19.21955451]
[1724184652684,7.65473,2612.8,2612.6,19.21955451]
[1724184652884,3.82733,2612.8,2612.6,19.21955451]
[1724184653442,7.65476,2612.8,2612.6,19.21955451]
[1724184653630,3.82733,2612.8,2612.6,19.21955451]
[1724184653934,3.82712,2613.0,2612.6,19.21955451]
[1724184653935,3.82718,2612.9,2612.6,19.21955451]
[1724184655590,3.82731,2612.8,2612.5,2.2611]
[1724184655839,3.82707,2613.0,2612.5,2.2611]
[1724184656390,3.82659,2613.3,2612.5,2.2611]
[1724184656618,3.82724,2612.9,2612.5,2.2611]
[1724184657119,7.65449,2612.9,2612.5,2.2611]
[1724184657607,3.82732,2612.8,2612.5,2.2611]
[1724184658128,0.24049718,2612.7,2612.5,2.2611]
[1724184658321,4.06795718,2612.7,2612.5,2.2611]
[1724184658539,3.82746,2612.7,2612.5,2.2611]
[1724184658690,0.24050904,2612.6,2612.5,2.2611]
[1724184659034,0.24050904,2612.6,2612.5,21.48065451]
[1724184659903,3.82732,2612.8,2612.5,21.48065451]
[1724184660222,3.82753,2612.7,2612.5,21.48065451]
[1724184660406,4.06810904,2612.6,2612.5,19.21955451]
[1724184661452,3.82798,2612.4,2612.2,2.3105]
[1724184661960,0.24049978,2612.3,2612.2,2.3105]
[1724184663509,7.6548,2612.8,2612.2,2.8605]
[1724184663710,0.24049978,2612.3,2612.2,2.8605]
[1724184663937,3.82747,2612.7,2612.2,2.8605]
[1724184664214,10.70473,2613.2,2612.2,2.8605]
[1724184664215,3.82719,2612.9,2612.2,2.8605]
[1724184664424,0.24053704,2612.8,2612.3,0.55]
[1724184664635,3.82748,2612.7,2612.3,19.76955451]
[1724184664923,3.82763,2612.6,2612.3,19.76955451]
[1724184665316,0.2405136,2612.5,2612.3,19.76955451]
[1724184666350,3.82746,2612.7,2612.3,19.76955451]
[1724184666650,0.24048194,2612.6,2612.3,19.76955451]
[1724184667382,3.82776,2612.5,2612.3,19.21955451]
[1724184667731,0.24044703,2612.4,2612.3,19.21955451]
[1724184669429,3.82761,2612.6,2612.3,19.21955451]
[1724184669634,3.82746,2612.7,2612.3,19.21955451]
[1724184669635,0.24046276,2612.5,2612.3,21.37255996]
[1724184669830,3.82727,2612.9,2612.4,0.55]
[1724184670060,3.82747,2612.7,2612.4,0.55]
[1724184670431,0.240444,2612.6,2612.4,0.55]
[1724184670771,0.240444,2612.6,2612.4,19.76955451]
[1724184672485,0.24040068,2612.5,2612.4,22.19286051]
[1724184672942,3.82745,2612.7,2612.4,22.19286051]
[1724184673152,3.82726,2612.9,2612.4,19.76955451]
[1724184673335,3.82738,2612.8,2612.4,19.76955451]
[1724184673540,4.06782787,2612.8,2612.4,19.76955451]
[1724184673739,4.06782787,2612.8,2612.4,19.77376311]
[1724184674276,3.82746,2612.7,2612.4,19.77376311]
[1724184674878,0.24041641,2612.6,2612.4,19.77376311]
[1724184675081,4.06806641,2612.6,2612.4,19.77376311]
[1724184675664,0.24041641,2612.6,2612.4,19.77376311]
[1724184676537,0.24041641,2612.6,2612.4,0.5542086]
[1724184677078,3.82733,2612.8,2612.4,0.5542086]
[1724184677079,3.82733,2612.8,2612.5,2.3297]
[1724184677935,3.82688,2613.1,2612.5,2.3297]
[1724184678179,3.82688,2613.1,2612.6,0.55]
[1724184678582,3.82703,2613.0,2612.6,0.55]
[1724184678789,3.82703,2613.0,2612.6,2.83393191]
[1724184679022,3.82681,2613.2,2612.6,2.83393191]
[1724184679185,3.82659,2613.3,2612.7,21.54925451]
[1724184679370,3.82673,2613.2,2612.8,0.55]
[1724184679984,3.82698,2613.1,2612.8,0.55]
[1724184680171,3.82703,2613.0,2612.8,0.55]
[1724184680393,3.82723,2612.9,2612.7,21.54925451]
[1724184680972,3.82703,2613.0,2612.7,21.54925451]
[1724184681174,3.82695,2613.1,2612.7,21.54925451]
[1724184681377,3.82703,2613.0,2612.8,0.55]
[1724184682817,3.82709,2613.0,2612.8,0.55]
[1724184684824,3.82731,2612.8,2612.5,19.21955451]
[1724184685474,3.82747,2612.7,2612.5,19.21955451]
[1724184685671,3.8276,2612.6,2612.5,19.21955451]
[1724184685913,7.6552,2612.6,2612.5,19.21955451]
[1724184686872,7.6555,2612.5,2612.4,0.0042086]
[1724184688016,7.89591003,2612.5,2612.4,0.0042086]
[1724184688216,11.72366003,2612.5,2612.4,0.0042086]
[1724184688899,11.72366003,2612.5,2612.4,0.00420875]
[1724184690541,7.89591003,2612.5,2612.4,0.00420875]
[1724184691388,4.06816003,2612.5,2612.4,2.30570875]
[1724184692033,4.06816003,2612.5,2612.4,2.30570876]
[1724184692597,0.24041003,2612.5,2612.4,2.30570876]
[1724184693612,3.82753,2612.7,2612.4,2.30570876]
[1724184693812,4.0678665,2612.6,2612.4,2.30570876]
[1724184694149,3.82775,2612.5,2612.4,0.00420876]
[1724184694349,3.82775,2612.5,2612.4,19.22376327]
[1724184694655,3.82775,2612.5,2612.4,19.22376328]
[1724184694656,4.06797077,2612.5,2612.4,19.22376328]
[1724184694939,0.24022077,2612.5,2612.4,19.22376329]
[1724184695156,0.24022077,2612.5,2612.4,19.2237633]
[1724184695294,7.65511,2612.7,2612.4,19.22376331]
[1724184695498,0.24021387,2612.5,2612.4,19.22376331]
[1724184695998,4.06796387,2612.5,2612.4,19.22376332]
[1724184696299,4.06796387,2612.5,2612.4,19.22376333]
[1724184696300,0.24021387,2612.5,2612.4,19.22376333]
[1724184696494,0.24021387,2612.5,2612.4,19.22376334]
[1724184696695,3.82771,2612.6,2612.4,19.22376334]
[1724184696929,0.24018972,2612.5,2612.4,19.22376335]
[1724184697324,0.24018972,2612.5,2612.4,19.22376336]
[1724184697728,0.24018972,2612.5,2612.4,19.22376337]
[1724184698644,0.24018972,2612.5,2612.4,19.22376338]
[1724184699033,0.24018972,2612.5,2612.4,21.49076338]
[1724184699201,3.8274,2612.8,2612.4,24.18983973]
[1724184699403,0.24021774,2612.7,2612.4,24.18983973]
[1724184699631,3.82746,2612.7,2612.4,22.0407634]
[1724184699837,0.24020201,2612.6,2612.4,22.0407634]